[Event "IIFL Wealth  4th Mumbai Junior U-13"]
[Site "Mumbai"]
[Date "2019.01.01"]
[Round "3"]
[White "Ks Saikrishna"]
[Black "Laddha, Yash Jayesh"]
[Result "0-1"]
[ECO "B75"]
[WhiteElo "1138"]
[BlackElo "1449"]
[Annotator "NA"]
[PlyCount "152"]
[EventDate "2018.12.30"]
[EventType "swiss"]
[EventCountry "IND"]
[SourceTitle "playchess.com"]
[Source "ChessBase"]
[SourceQuality "1"]
[TimeControl "40/5400+30:1800+30"]

1. e4 {[%emt 0:00:00]} c5 {[%emt 0:00:00]} 2. Nf3 {[%emt 0:00:00]} d6 {[%emt 0:00:00]} 3. d4 {[%emt 0:00:00]} cxd4 {[%emt 0:00:00]} 4. Nxd4 {[%emt 0:00:01]} Nf6 {[%emt 0:00:00]} 5. Nc3 {[%emt 0:00:41]} g6 {[%emt 0:00:03]} 6. Be3 {[%emt 0:00:08]} Bg7 {[%emt 0:00:05]} 7. f3 {[%emt 0:00:20]} Nc6 {[%emt 0:00:43]} 8. Qd2 {[%emt 0:09:40]} O-O {[%emt 0:01:26]} 9. Nxc6 {[%emt 0:00:49]} bxc6 {[%emt 0:00:08]} 10. g4 {[%emt 0:00:22]} Be6 {[%emt 0:10:29]} 11. Be2 {[%emt 0:07:47]} Rb8 {[%emt 0:06:53]} 12. Na4 {[%emt 0:19:12]} c5 {[%emt 0:06:38]} 13. c4 {[%emt 0:03:55]} Bd7 {[%emt 0:06:04]} 14. Nc3 {[%emt 0:01:38]} Qb6 {[%emt 0:02:18]} 15. O-O-O {[%emt 0:09:36]} Ne8 {[%emt 0:08:25]} 16. h4 {[%emt 0:01:40]} Qa5 {[%emt 0:12:31]} 17. h5 {[%emt 0:14:02]} Bxc3 {[%emt 0:06:44]} 18. Qxc3 {[%emt 0:05:02]} Qxa2 {[%emt 0:13:55]} 19. hxg6 {[%emt 0:08:08]} fxg6 {[%emt 0:03:05]} 20. Rxh7 {[%emt 0:04:39]} Qa1+ {[%emt 0:01:53]} 21. Kc2 {[%emt 0:01:17]} Qxb2+ {[%emt 0:00:41]} 22. Qxb2 {[%emt 0:00:43]} Rxb2+ {[%emt 0:00:05]} 23. Kxb2 {[%emt 0:00:09]} Kxh7 {[%emt 0:00:07]} 24. Ra1 {[%emt 0:00:35]} Be6 {[%emt 0:09:05]} 25. Rxa7 {[%emt 0:00:55]} Rf7 {[%emt 0:01:58]} 26. Bg5 {[%emt 0:00:44]} Nf6 {[%emt 0:00:15]} 27. Bxf6 {[%emt 0:02:12]} exf6 {[%emt 0:00:09]} 28. Rxf7+ {[%emt 0:00:10]} Bxf7 {[%emt 0:00:07]} 29. Kb3 {[%emt 0:00:07]} Be8 {[%emt 0:00:33]} 30. Kc3 {[%emt 0:00:20]} Kg7 {[%emt 0:00:39]} 31. f4 {[%emt 0:00:38]} Kf7 {[%emt 0:02:37]} 32. Kd3 {[%emt 0:00:28]} Ke6 {[%emt 0:01:13]} 33. f5+ {[%emt 0:01:10]} Ke5 {[%emt 0:01:22]} 34. Ke3 {[%emt 0:00:41]} g5 {[%emt 0:00:34]} 35. Bd1 {[%emt 0:00:33]} Bd7 {[%emt 0:00:35]} 36. Bc2 {[%emt 0:00:53]} Bc6 {[%emt 0:00:05]} 37. Bd1 {[%emt 0:03:27]} Bxe4 {[%emt 0:00:20]} 38. Bb3 {[%emt 0:00:32]} Bg2 {[%emt 0:00:29]} 39. Kf2 {[%emt 0:01:00]} Bh3 {[%emt 0:01:30]} 40. Kg3 {[%emt 0:00:00]} Bf1 {[%emt 0:00:00]} 41. Kf2 {[%emt 0:00:19]} Bd3 {[%emt 0:00:23]} 42. Ke3 {[%emt 0:00:08]} Bb1 {[%emt 0:00:38]} 43. Bd1 {[%emt 0:00:22]} Ba2 {[%emt 0:00:19]} 44. Be2 {[%emt 0:00:01]} d5 {[%emt 0:00:22]} 45. cxd5 {[%emt 0:00:19]} Kxd5 {[%emt 0:00:31]} 46. Bf3+ {[%emt 0:00:24]} Ke5 {[%emt 0:01:21]} 47. Bd1 {[%emt 0:00:34]} Bb1 {[%emt 0:00:25]} 48. Be2 {[%emt 0:00:14]} Be4 {[%emt 0:01:08]} 49. Bc4 {[%emt 0:00:14]} Bd5 {[%emt 0:00:14]} 50. Bd3 {[%emt 0:00:15]} c4 {[%emt 0:00:20]} 51. Bb1 {[%emt 0:00:46]} c3 {[%emt 0:00:54]} 52. Bc2 {[%emt 0:01:18]} Bc4 {[%emt 0:00:23]} 53. Bd1 {[%emt 0:00:11]} Kd5 {[%emt 0:00:18]} 54. Bc2 {[%emt 0:00:20]} Kc5 {[%emt 0:00:10]} 55. Bd1 {[%emt 0:01:39]} Kb4 {[%emt 0:00:29]} 56. Kd4 {[%emt 0:01:24]} Bb3 {[%emt 0:00:17]} 57. Bxb3 {[%emt 0:00:04]} Kxb3 {[%emt 0:00:05]} 58. Kd5 {[%emt 0:00:04]} c2 {[%emt 0:00:06]} 59. Ke6 {[%emt 0:00:01]} c1=Q {[%emt 0:00:09]} 60. Kxf6 {[%emt 0:00:05]} Qf4 {[%emt 0:00:09]} 61. Kg6 {[%emt 0:01:13]} Qxg4 {[%emt 0:00:19]} 62. f6 {[%emt 0:00:12]} Qf4 {[%emt 0:00:06]} 63. f7 {[%emt 0:00:04]} g4 {[%emt 0:00:03]} 64. Kg7 {[%emt 0:00:36]} g3 {[%emt 0:00:05]} 65. f8=Q Qxf8+ 66. Kxf8 {[%emt 0:00:17]} g2 {[%emt 0:00:07]} 67. Ke7 {[%emt 0:00:10]} g1=Q {[%emt 0:00:08]} 68. Ke6 {[%emt 0:00:11]} Qg5 {[%emt 0:00:03]} 69. Kd6 {[%emt 0:00:07]} Qf5 {[%emt 0:00:08]} 70. Ke7 {[%emt 0:00:05]} Qg6 {[%emt 0:00:05]} 71. Kd7 {[%emt 0:00:09]} Qf6 {[%emt 0:00:09]} 72. Ke8 {[%emt 0:00:09]} Qg7 {[%emt 0:00:10]} 73. Kd8 {[%emt 0:00:03]} Kc4 {[%emt 0:00:05]} 74. Ke8 {[%emt 0:00:06]} Kd5 {[%emt 0:00:06]} 75. Kd8 {[%emt 0:00:06]} Kd6 {[%emt 0:00:06]} 76. Ke8 {[%emt 0:00:02]} Qe7# {[%emt 0:00:05]} 0-1

[Event "IIFL Wealth  4th Mumbai Junior U-13"]
[Site "Mumbai"]
[Date "2019.01.01"]
[Round "3"]
[White "Saukhya Savant"]
[Black "Kriti Mayur Patel"]
[Result "0-1"]
[ECO "C77"]
[WhiteElo "1122"]
[BlackElo "1439"]
[Annotator "NA RC"]
[PlyCount "88"]
[EventDate "2018.12.30"]
[EventType "swiss"]
[EventCountry "IND"]
[SourceTitle "playchess.com"]
[Source "ChessBase"]
[SourceQuality "1"]
[TimeControl "40/5400+30:1800+30"]

1. e4 {[%emt 0:00:00]} e5 {[%emt 0:00:00]} 2. Nf3 {[%emt 0:00:00]} Nc6 {[%emt 0:00:00]} 3. Bb5 {[%emt 0:00:00]} a6 {[%emt 0:00:00]} 4. Ba4 {[%emt 0:00:27]} Nf6 {[%emt 0:00:00]} 5. Qe2 {[%emt 0:01:31]} b5 {[%emt 0:00:42]} 6. Bb3 {[%emt 0:01:11]} Bc5 {[%emt 0:00:34]} 7. a4 {[%emt 0:01:32]} Rb8 {[%emt 0:01:12]} 8. c3 {[%emt 0:07:50]} d6 {[%emt 0:02:01]} 9. axb5 {[%emt 0:04:28]} axb5 {[%emt 0:00:49]} 10. h3 {[%emt 0:05:47]} O-O {[%emt 0:01:04]} 11. O-O {[%emt 0:03:30]} h6 {[%emt 0:02:08]} 12. d3 {[%emt 0:02:19]} Be6 {[%emt 0:02:29]} 13. Bc2 {[%emt 0:02:08]} b4 {[%emt 0:03:33]} 14. c4 {[%emt 0:01:51]} Bd4 {[%emt 0:03:20]} 15. Nbd2 {[%emt 0:02:33]} Nh5 {[%emt 0:03:56]} 16. Nb3 {[%emt 0:10:04]} Ng3 {[%emt 0:00:57]} 17. Qd2 {[%emt 0:09:43]} Nxf1 {[%emt 0:04:18]} 18. Kxf1 {[%emt 0:00:10]} Bb6 {[%emt 0:00:43]} 19. Qe2 {[%emt 0:07:25]} f5 {[%emt 0:03:43]} 20. exf5 {[%emt 0:01:14]} Bxf5 {[%emt 0:00:52]} 21. Be3 {[%emt 0:03:08]} Bxe3 {[%emt 0:02:45]} 22. Qxe3 {[%emt 0:00:04]} Qf6 {[%emt 0:00:33]} 23. Ra6 {[%emt 0:02:11]} Ne7 {[%emt 0:04:15]} 24. c5 {[%emt 0:02:26]} Ra8 {[%emt 0:01:18]} 25. Rxa8 {[%emt 0:00:14]} Rxa8 {[%emt 0:00:16]} 26. cxd6 {[%emt 0:00:29]} cxd6 {[%emt 0:00:30]} 27. Nfd2 {[%emt 0:01:25]} d5 {[%emt 0:02:31]} 28. g4 {[%emt 0:01:42]} Be6 {[%emt 0:01:00]} 29. Qf3 {[%emt 0:00:29]} Qxf3 {[%emt 0:00:24]} 30. Nxf3 {[%emt 0:00:07]} Nc6 {[%emt 0:00:27]} 31. d4 {[%emt 0:00:52]} e4 {[%emt 0:01:15]} 32. Ne5 {[%emt 0:00:33]} Nxe5 {[%emt 0:00:55]} 33. dxe5 {[%emt 0:00:08]} Ra2 {[%emt 0:00:09]} 34. Nd4 {[%emt 0:00:40]} Rxb2 {[%emt 0:00:28]} 35. Nxe6 {[%emt 0:00:13]} Rxc2 {[%emt 0:00:08]} 36. Nd4 {[%emt 0:00:31]} Rc4 {[%emt 0:00:14]} 37. Ne2 {[%emt 0:00:36]} b3 {[%emt 0:00:17]} 38. Ng3 {[%emt 0:00:30]} b2 {[%emt 0:00:12]} 39. Nf5 {[%emt 0:00:17]} b1=Q+ {[%emt 0:00:06]} 40. Kg2 {[%emt 0:00:00]} Rc1 {[%emt 0:00:00]} 41. Ng3 {[%emt 0:01:21]} Rg1+ {[%emt 0:00:29]} 42. Kh2 {[%emt 0:00:06]} Qe1 {[%emt 0:00:06]} 43. h4 {[%emt 0:00:19]} Qxf2+ {[%emt 0:00:18]} 44. Kh3 {[%emt 0:00:19]} Qxg3# {[%emt 0:00:06]} 0-1

[Event "IIFL Wealth  4th Mumbai Junior U-13"]
[Site "Mumbai"]
[Date "2019.01.01"]
[Round "3"]
[White "Shah, Viraj Bhaveshu"]
[Black "Dande Vyankatesh S"]
[Result "1-0"]
[ECO "C50"]
[WhiteElo "1119"]
[BlackElo "1418"]
[Annotator "NA RC"]
[PlyCount "55"]
[EventDate "2018.12.30"]
[EventType "swiss"]
[EventCountry "IND"]
[SourceTitle "playchess.com"]
[Source "ChessBase"]
[SourceQuality "1"]
[TimeControl "40/5400+30:1800+30"]

1. e4 {[%emt 0:00:00]} e5 {[%emt 0:00:00]} 2. Nf3 {[%emt 0:00:00]} Nf6 {[%emt 0:00:00]} 3. Nc3 {[%emt 0:00:08]} Nc6 {[%emt 0:00:12]} 4. Bc4 {[%emt 0:00:14]} Bc5 {[%emt 0:00:00]} 5. d3 {[%emt 0:00:47]} h6 {[%emt 0:00:04]} 6. O-O {[%emt 0:00:27]} d6 {[%emt 0:00:06]} 7. h3 {[%emt 0:00:13]} O-O {[%emt 0:00:38]} 8. Ne2 {[%emt 0:01:33]} Nh7 {[%emt 0:00:30]} 9. Be3 {[%emt 0:01:53]} Bb6 {[%emt 0:01:12]} 10. Ng3 {[%emt 0:01:33]} Qf6 {[%emt 0:00:35]} 11. c3 {[%emt 0:03:19]} Qg6 {[%emt 0:12:08]} 12. Qe1 {[%emt 0:02:32]} Be6 {[%emt 0:03:32]} 13. Bb3 {[%emt 0:05:42]} Bd7 {[%emt 0:10:21]} 14. Ba4 {[%emt 0:01:03]} Qe6 {[%emt 0:11:29]} 15. Bd1 {[%emt 0:02:12]} g6 {[%emt 0:07:40]} 16. Rc1 {[%emt 0:08:03]} Qe7 {[%emt 0:03:02]} 17. Rc2 {[%emt 0:03:39]} Ng5 {[%emt 0:17:41]} 18. Nh2 {[%emt 0:04:23]} Ne6 {[%emt 0:05:14]} 19. Ng4 {[%emt 0:01:25]} Kg7 {[%emt 0:00:49]} 20. Rd2 {[%emt 0:19:51]} h5 {[%emt 0:05:32]} 21. Nh2 {[%emt 0:06:55]} Kh7 {[%emt 0:05:21]} 22. Re2 {[%emt 0:01:25]} Ng5 {[%emt 0:01:50]} 23. Kh1 {[%emt 0:04:00]} Nxh3 {[%emt 0:11:20]} 24. gxh3 {[%emt 0:01:02]} Bxh3 {[%emt 0:00:09]} 25. Rg1 {[%emt 0:00:36]} h4 {[%emt 0:00:28]} 26. Ngf1 {[%emt 0:03:33]} f5 {[%emt 0:01:27]} 27. Nf3 {[%emt 0:01:50]} Bg4 {[%emt 0:01:16]} 28. N1h2 {[%emt 0:01:38]} 1-0

[Event "IIFL Wealth  4th Mumbai Junior U-13"]
[Site "Mumbai"]
[Date "2019.01.01"]
[Round "3"]
[White "Shreyas Ravindra Patil"]
[Black "Amrit Raunak"]
[Result "0-1"]
[ECO "C70"]
[WhiteElo "1110"]
[BlackElo "1410"]
[Annotator "NA RC"]
[PlyCount "125"]
[EventDate "2018.12.30"]
[EventType "swiss"]
[EventCountry "IND"]
[SourceTitle "playchess.com"]
[Source "ChessBase"]
[SourceQuality "1"]
[TimeControl "40/5400+30:1800+30"]

1. e4 {[%emt 0:00:00]} e5 {[%emt 0:00:00]} 2. Nf3 {[%emt 0:00:00]} Nc6 {[%emt 0:00:00]} 3. Bb5 a6 {[%emt 0:00:00]} 4. Ba4 {[%emt 0:00:00]} b5 {[%emt 0:00:00]} 5. Bb3 {[%emt 0:00:00]} Nf6 {[%emt 0:00:00]} 6. O-O {[%emt 0:00:00]} Bc5 7. d3 h6 {[%emt 0:00:47]} 8. c3 {[%emt 0:00:33]} d6 {[%emt 0:00:39]} 9. d4 {[%emt 0:00:10]} exd4 {[%emt 0:00:49]} 10. cxd4 {[%emt 0:00:07]} Bb6 {[%emt 0:00:04]} 11. e5 {[%emt 0:00:18]} dxe5 {[%emt 0:04:53]} 12. dxe5 {[%emt 0:02:15]} Qxd1 {[%emt 0:01:06]} 13. Bxd1 {[%emt 0:00:06]} Nd7 {[%emt 0:00:17]} 14. Kh1 {[%emt 0:00:37]} O-O {[%emt 0:00:16]} 15. Bf4 {[%emt 0:00:04]} Nc5 {[%emt 0:00:19]} 16. Be2 {[%emt 0:00:42]} Bf5 {[%emt 0:01:43]} 17. Nc3 {[%emt 0:00:48]} Rad8 {[%emt 0:03:44]} 18. Rad1 {[%emt 0:00:38]} Ne6 {[%emt 0:09:50]} 19. Rxd8 {[%emt 0:02:18]} Rxd8 {[%emt 0:00:18]} 20. Be3 {[%emt 0:00:08]} Bxe3 {[%emt 0:00:30]} 21. fxe3 {[%emt 0:00:19]} Bg4 {[%emt 0:00:26]} 22. Rd1 {[%emt 0:01:46]} Rxd1+ {[%emt 0:00:21]} 23. Bxd1 {[%emt 0:00:08]} Bxf3 {[%emt 0:00:04]} 24. gxf3 {[%emt 0:00:14]} Nxe5 {[%emt 0:00:06]} 25. f4 {[%emt 0:00:21]} Nc4 {[%emt 0:00:19]} 26. f5 {[%emt 0:00:09]} Nd8 {[%emt 0:01:01]} 27. Bf3 {[%emt 0:04:24]} Nxe3 {[%emt 0:00:20]} 28. Be4 {[%emt 0:00:18]} Kf8 {[%emt 0:00:41]} 29. Kg1 {[%emt 0:00:33]} Ke7 {[%emt 0:00:41]} 30. Kf2 {[%emt 0:00:08]} Ng4+ {[%emt 0:00:33]} 31. Kg3 {[%emt 0:00:11]} Nf6 {[%emt 0:00:32]} 32. Nd5+ {[%emt 0:00:20]} Nxd5 {[%emt 0:00:21]} 33. Bxd5 {[%emt 0:00:08]} Kd6 {[%emt 0:00:06]} 34. Bb3 {[%emt 0:00:11]} f6 {[%emt 0:00:13]} 35. Kg4 Nc6 {[%emt 0:00:34]} 36. Kh5 {[%emt 0:00:35]} Ne5 {[%emt 0:00:09]} 37. Be6 {[%emt 0:02:14]} Kc5 {[%emt 0:00:21]} 38. h4 {[%emt 0:01:14]} Kd4 {[%emt 0:00:30]} 39. b4 {[%emt 0:01:02]} Kc3 {[%emt 0:00:10]} 40. Bb3 {[%emt 0:01:24]} Kxb4 41. Be6 Kc5 {[%emt 0:31:24]} 42. Bb3 {[%emt 0:00:51]} Kd6 {[%emt 0:00:00]} 43. Be6 {[%emt 0:00:19]} Ke7 {[%emt 0:00:00]} 44. Bc8 {[%emt 0:00:41]} a5 {[%emt 0:00:00]} 45. Ba6 {[%emt 0:00:07]} b4 {[%emt 0:00:00]} 46. Bc8 {[%emt 0:00:39]} c5 {[%emt 0:00:00]} 47. Be6 {[%emt 0:00:08]} c4 {[%emt 0:00:00]} 48. Bg8 {[%emt 0:00:38]} a4 {[%emt 0:00:00]} 49. Bd5 {[%emt 0:02:08]} c3 {[%emt 0:00:00]} 50. Be4 {[%emt 0:00:16]} b3 {[%emt 0:00:00]} 51. axb3 {[%emt 0:01:53]} axb3 {[%emt 0:00:00]} 52. Bc2 {[%emt 0:00:08]} b2 {[%emt 0:00:00]} 53. Bb1 {[%emt 0:00:07]} Nc4 {[%emt 0:00:00]} 54. Kg6 {[%emt 0:00:42]} Kf8 {[%emt 0:00:00]} 55. h5 {[%emt 0:00:21]} Na3 {[%emt 0:00:00]} 56. Bd3 {[%emt 0:00:10]} c2 {[%emt 0:00:00]} 57. Bxc2 {[%emt 0:00:13]} Nxc2 {[%emt 0:00:00]} 58. Kh7 {[%emt 0:00:09]} b1=Q {[%emt 0:00:00]} 59. Kh8 {[%emt 0:00:08]} Kf7 {[%emt 0:00:00]} 60. Kh7 {[%emt 0:00:09]} Nd4 {[%emt 0:00:00]} 61. Kh8 {[%emt 0:01:59]} Nf3 {[%emt 0:00:00]} 62. Kh7 {[%emt 0:00:09]} Ng5+ {[%emt 0:00:00]} 63. Kh8 {[%emt 0:00:18]} 0-1

[Event "IIFL Wealth  4th Mumbai Junior U-13"]
[Site "Mumbai"]
[Date "2019.01.01"]
[Round "3"]
[White "Arushi Srichandan"]
[Black "Ananya Arumbakkam"]
[Result "1/2-1/2"]
[ECO "C28"]
[WhiteElo "1100"]
[BlackElo "1405"]
[Annotator "NA RC"]
[PlyCount "87"]
[EventDate "2018.12.30"]
[EventType "swiss"]
[EventCountry "IND"]
[SourceTitle "playchess.com"]
[Source "ChessBase"]
[SourceQuality "1"]
[TimeControl "40/5400+30:1800+30"]

1. e4 {[%emt 0:00:00]} e5 {[%emt 0:00:00]} 2. Bc4 {[%emt 0:00:01]} Nf6 {[%emt 0:00:19]} 3. Nc3 {[%emt 0:00:09]} Nc6 {[%emt 0:00:11]} 4. d3 {[%emt 0:01:16]} Bc5 {[%emt 0:00:36]} 5. f4 {[%emt 0:02:46]} d6 {[%emt 0:02:00]} 6. Nf3 {[%emt 0:02:12]} Ng4 {[%emt 0:01:41]} 7. Ng5 {[%emt 0:02:01]} O-O {[%emt 0:01:08]} 8. h3 {[%emt 0:06:57]} Nf6 {[%emt 0:00:31]} 9. f5 {[%emt 0:01:22]} h6 {[%emt 0:01:31]} 10. Nf3 {[%emt 0:00:32]} Na5 {[%emt 0:04:03]} 11. Bb3 {[%emt 0:00:40]} Nxb3 {[%emt 0:00:07]} 12. axb3 {[%emt 0:00:06]} a6 {[%emt 0:01:20]} 13. g4 {[%emt 0:00:52]} d5 {[%emt 0:16:56]} 14. g5 {[%emt 0:09:25]} dxe4 {[%emt 0:00:30]} 15. gxf6 {[%emt 0:00:30]} exf3 {[%emt 0:00:30]} 16. Qxf3 Qxf6 {[%emt 0:00:37]} 17. Ne4 {[%emt 0:05:23]} Qh4+ {[%emt 0:03:39]} 18. Kd1 {[%emt 0:00:25]} Be7 {[%emt 0:00:33]} 19. Rg1 {[%emt 0:00:57]} Kh8 {[%emt 0:00:29]} 20. Be3 {[%emt 0:02:31]} Bd7 {[%emt 0:00:46]} 21. Kd2 {[%emt 0:04:52]} Bc6 {[%emt 0:02:59]} 22. Rg4 {[%emt 0:10:42]} Qf6 {[%emt 0:08:39]} 23. Rag1 {[%emt 0:09:40]} Bxe4 {[%emt 0:10:44]} 24. Qxe4 {[%emt 0:00:09]} c6 {[%emt 0:00:49]} 25. Rxg7 {[%emt 0:01:34]} Rg8 {[%emt 0:01:27]} 26. Rxg8+ {[%emt 0:00:08]} Rxg8 {[%emt 0:00:07]} 27. Rxg8+ {[%emt 0:00:08]} Kxg8 {[%emt 0:00:05]} 28. Qg4+ {[%emt 0:00:11]} Kh7 {[%emt 0:00:04]} 29. Ke2 {[%emt 0:00:28]} Qg7 {[%emt 0:01:41]} 30. Kf3 {[%emt 0:00:34]} Bg5 {[%emt 0:01:03]} 31. Bxg5 {[%emt 0:00:48]} Qxg5 {[%emt 0:00:31]} 32. Ke4 {[%emt 0:05:27]} f6 {[%emt 0:05:56]} 33. Kf3 {[%emt 0:01:02]} Kg7 {[%emt 0:03:14]} 34. h4 {[%emt 0:00:22]} Qxg4+ {[%emt 0:00:13]} 35. Kxg4 {[%emt 0:00:07]} Kf7 {[%emt 0:00:08]} 36. Kh5 {[%emt 0:00:05]} Kg7 {[%emt 0:00:03]} 37. Kg4 {[%emt 0:00:07]} Kf7 {[%emt 0:00:08]} 38. Kh5 {[%emt 0:00:05]} Kg7 {[%emt 0:00:18]} 39. Kg4 {[%emt 0:00:09]} Kf7 {[%emt 0:00:09]} 40. Kh5 {[%emt 0:00:00]} Kg7 {[%emt 0:00:00]} 41. Kg4 {[%emt 0:00:25]} Kf7 {[%emt 0:00:09]} 42. Kh5 {[%emt 0:00:09]} Kg7 {[%emt 0:00:06]} 43. Kg4 Kf7 44. Kh5 1/2-1/2

[Event "IIFL Wealth  4th Mumbai Junior U-13"]
[Site "Mumbai"]
[Date "2019.01.01"]
[Round "3"]
[White "Bhosale Saarth"]
[Black "Virle Kimaya"]
[Result "0-1"]
[ECO "B78"]
[WhiteElo "1066"]
[BlackElo "1391"]
[Annotator "NA RC"]
[PlyCount "84"]
[EventDate "2018.12.30"]
[EventType "swiss"]
[EventCountry "IND"]
[SourceTitle "playchess.com"]
[Source "ChessBase"]
[SourceQuality "1"]
[TimeControl "40/5400+30:1800+30"]

1. e4 {[%emt 0:00:00]} c5 {[%emt 0:00:00]} 2. Nf3 {[%emt 0:00:00]} d6 {[%emt 0:00:00]} 3. d4 {[%emt 0:00:00]} cxd4 {[%emt 0:00:00]} 4. Nxd4 {[%emt 0:00:02]} Nf6 {[%emt 0:00:03]} 5. Nc3 {[%emt 0:00:04]} g6 {[%emt 0:00:12]} 6. Be3 {[%emt 0:00:28]} Bg7 {[%emt 0:00:07]} 7. f3 {[%emt 0:00:05]} O-O {[%emt 0:00:12]} 8. Bc4 {[%emt 0:00:05]} Nc6 {[%emt 0:00:11]} 9. Qd2 {[%emt 0:00:18]} Bd7 {[%emt 0:00:18]} 10. O-O-O {[%emt 0:00:13]} Rc8 {[%emt 0:00:05]} 11. Bb3 {[%emt 0:00:24]} Nxd4 {[%emt 0:00:25]} 12. Bxd4 {[%emt 0:00:34]} b5 {[%emt 0:00:08]} 13. h4 {[%emt 0:02:24]} a5 {[%emt 0:00:53]} 14. Bxf6 {[%emt 0:02:54]} Bxf6 {[%emt 0:00:52]} 15. Nd5 {[%emt 0:00:12]} Bg7 {[%emt 0:00:38]} 16. a3 {[%emt 0:00:27]} Be6 {[%emt 0:02:58]} 17. h5 {[%emt 0:03:03]} Bxd5 {[%emt 0:07:42]} 18. Qxd5 {[%emt 0:00:24]} Rc5 {[%emt 0:00:51]} 19. Qxc5 {[%emt 0:00:44]} dxc5 {[%emt 0:00:08]} 20. Rxd8 {[%emt 0:00:05]} Rxd8 {[%emt 0:00:01]} 21. hxg6 {[%emt 0:00:19]} hxg6 {[%emt 0:00:10]} 22. Re1 {[%emt 0:00:41]} Be5 {[%emt 0:00:45]} 23. Bd5 {[%emt 0:00:58]} e6 {[%emt 0:00:19]} 24. Bb3 {[%emt 0:00:21]} Bg3 {[%emt 0:00:48]} 25. Rf1 {[%emt 0:01:35]} Bf4+ {[%emt 0:02:53]} 26. Kb1 {[%emt 0:02:36]} a4 {[%emt 0:01:03]} 27. Ba2 {[%emt 0:00:33]} Bg3 {[%emt 0:01:01]} 28. Kc1 {[%emt 0:00:27]} Bf4+ {[%emt 0:00:59]} 29. Kb1 {[%emt 0:00:07]} Kg7 {[%emt 0:00:15]} 30. g4 {[%emt 0:03:28]} Kf6 {[%emt 0:00:52]} 31. b3 {[%emt 0:00:53]} axb3 {[%emt 0:00:46]} 32. cxb3 {[%emt 0:02:26]} Ra8 {[%emt 0:01:33]} 33. b4 {[%emt 0:01:09]} c4 {[%emt 0:00:34]} 34. Kb2 {[%emt 0:01:03]} Be5+ {[%emt 0:00:14]} 35. Kb1 {[%emt 0:00:06]} Rxa3 {[%emt 0:00:20]} 36. f4 {[%emt 0:00:20]} Bd4 {[%emt 0:01:20]} 37. e5+ {[%emt 0:01:02]} Ke7 {[%emt 0:00:12]} 38. g5 {[%emt 0:00:18]} c3 {[%emt 0:02:10]} 39. Rc1 {[%emt 0:01:00]} Be3 {[%emt 0:00:47]} 40. Rc2 {[%emt 0:00:00]} Bxf4 {[%emt 0:00:00]} 41. Rg2 {[%emt 0:01:18]} Bxe5 {[%emt 0:00:35]} 42. Kc1 {[%emt 0:00:08]} Bd6 {[%emt 0:00:19]} 0-1

[Event "IIFL Wealth  4th Mumbai Junior U-13"]
[Site "Mumbai"]
[Date "2019.01.01"]
[Round "3"]
[White "Ambre Ved"]
[Black "Agarwal Mukund H"]
[Result "0-1"]
[ECO "B72"]
[WhiteElo "1063"]
[BlackElo "1375"]
[Annotator "NA RC"]
[PlyCount "110"]
[EventDate "2018.12.30"]
[EventType "swiss"]
[EventCountry "IND"]
[SourceTitle "playchess.com"]
[Source "ChessBase"]
[SourceQuality "1"]
[TimeControl "40/5400+30:1800+30"]

1. e4 {[%emt 0:00:00]} c5 {[%emt 0:03:32]} 2. Nf3 {[%emt 0:00:00]} d6 {[%emt 0:00:08]} 3. d4 {[%emt 0:00:00]} cxd4 {[%emt 0:00:06]} 4. Nxd4 {[%emt 0:00:00]} Nf6 {[%emt 0:00:02]} 5. Nc3 {[%emt 0:00:00]} g6 {[%emt 0:00:00]} 6. Be3 {[%emt 0:00:52]} Bg7 {[%emt 0:00:16]} 7. g3 {[%emt 0:01:11]} O-O {[%emt 0:02:52]} 8. f3 Nc6 {[%emt 0:04:41]} 9. Qd2 {[%emt 0:02:45]} d5 {[%emt 0:05:32]} 10. Nxc6 {[%emt 0:03:30]} bxc6 {[%emt 0:00:04]} 11. O-O-O {[%emt 0:00:03]} Be6 {[%emt 0:04:15]} 12. exd5 {[%emt 0:06:56]} Nxd5 {[%emt 0:02:04]} 13. Nxd5 {[%emt 0:00:26]} Bxd5 {[%emt 0:02:27]} 14. Bg2 {[%emt 0:00:04]} Qc7 {[%emt 0:02:51]} 15. Kb1 {[%emt 0:02:25]} Rfd8 {[%emt 0:01:51]} 16. Qf2 {[%emt 0:01:27]} Qa5 {[%emt 0:02:05]} 17. b3 {[%emt 0:03:04]} Rac8 {[%emt 0:13:48]} 18. Bd4 {[%emt 0:04:29]} c5 {[%emt 0:05:05]} 19. Bxg7 {[%emt 0:02:26]} Kxg7 {[%emt 0:00:04]} 20. c4 {[%emt 0:01:58]} Be6 {[%emt 0:00:28]} 21. f4 {[%emt 0:01:17]} Qc3 {[%emt 0:01:59]} 22. Qb2 {[%emt 0:01:38]} Bf5+ {[%emt 0:00:32]} 23. Ka1 {[%emt 0:00:30]} Qxb2+ {[%emt 0:00:23]} 24. Kxb2 {[%emt 0:00:05]} Bg4 {[%emt 0:00:40]} 25. Bb7 {[%emt 0:04:18]} Rxd1 {[%emt 0:03:22]} 26. Rxd1 {[%emt 0:00:03]} Rc7 {[%emt 0:00:15]} 27. Rd5 {[%emt 0:02:39]} Rxb7 {[%emt 0:00:35]} 28. Rxc5 {[%emt 0:00:06]} Kf8 {[%emt 0:01:25]} 29. Rd5 {[%emt 0:01:10]} Ke8 {[%emt 0:00:36]} 30. Kc3 {[%emt 0:01:29]} Be6 {[%emt 0:01:11]} 31. Rd4 {[%emt 0:00:48]} Rd7 {[%emt 0:00:25]} 32. b4 {[%emt 0:00:50]} Rxd4 {[%emt 0:00:09]} 33. Kxd4 {[%emt 0:00:04]} Kd7 {[%emt 0:00:17]} 34. Kc5 {[%emt 0:00:23]} Kc7 {[%emt 0:00:39]} 35. a4 {[%emt 0:01:51]} f6 {[%emt 0:00:48]} 36. a5 {[%emt 0:00:36]} Bf7 {[%emt 0:00:44]} 37. b5 {[%emt 0:00:55]} e5 {[%emt 0:00:40]} 38. Kb4 {[%emt 0:01:45]} exf4 {[%emt 0:00:58]} 39. gxf4 {[%emt 0:00:02]} h5 {[%emt 0:00:24]} 40. c5 {[%emt 0:00:00]} g5 {[%emt 0:00:00]} 41. b6+ {[%emt 0:01:07]} axb6 {[%emt 0:00:32]} 42. axb6+ {[%emt 0:00:02]} Kc6 {[%emt 0:00:20]} 43. fxg5 {[%emt 0:00:29]} fxg5 {[%emt 0:00:02]} 44. Kc3 {[%emt 0:00:37]} Bd5 {[%emt 0:02:20]} 45. Kd4 {[%emt 0:00:51]} Bf3 {[%emt 0:04:53]} 46. Ke3 {[%emt 0:02:24]} g4 {[%emt 0:01:15]} 47. h3 {[%emt 0:00:44]} Kxc5 {[%emt 0:00:19]} 48. hxg4 {[%emt 0:01:16]} hxg4 {[%emt 0:00:03]} 49. Kf4 {[%emt 0:00:54]} Kxb6 {[%emt 0:00:03]} 50. Kg3 {[%emt 0:00:02]} Kc5 {[%emt 0:00:09]} 51. Kf4 {[%emt 0:01:15]} Kd4 {[%emt 0:00:09]} 52. Kg3 {[%emt 0:00:02]} Ke3 {[%emt 0:00:12]} 53. Kh2 {[%emt 0:00:19]} Kf4 {[%emt 0:00:05]} 54. Kg1 {[%emt 0:00:30]} Kg3 {[%emt 0:00:02]} 55. Kf1 {[%emt 0:01:07]} Kh2 {[%emt 0:00:01]} 0-1